[Event "*** Titled Tuesday Blitz"]
[Site "Chess.com"]
[Date "2020.10.27"]
[Round "5"]
[White "Gabix_94"]
[Black "Ajedrez_con_German"]
[Result "0-1"]
[WhiteElo "2774"]
[BlackElo "2552"]
[TimeControl "180+1"]
[EndTime "10:55:33 PDT"]
[Termination "Ajedrez_con_German won by resignation"]

1. c4 {[%clk 0:03:00.9]} 1... c5 {[%clk 0:02:58.3]} 2. Nc3 {[%clk 0:03:01.2]}
2... g6 {[%clk 0:02:56.4]} 3. Nf3 {[%clk 0:03:01.3]} 3... Bg7 {[%clk 0:02:56.5]}
4. g3 {[%clk 0:03:01.9]} 4... Nc6 {[%clk 0:02:53.4]} 5. Bg2 {[%clk 0:03:02.3]}
5... Nh6 {[%clk 0:02:50.6]} 6. O-O {[%clk 0:03:01.4]} 6... O-O {[%clk
0:02:49.2]} 7. a3 {[%clk 0:03:01.3]} 7... d6 {[%clk 0:02:46.9]} 8. d3 {[%clk
0:02:59.8]} 8... Nf5 {[%clk 0:02:44.2]} 9. Bd2 {[%clk 0:02:59.3]} 9... Rb8
{[%clk 0:02:41.8]} 10. b4 {[%clk 0:02:49.2]} 10... a6 {[%clk 0:02:20.5]} 11. b5
{[%clk 0:02:41.4]} 11... Ncd4 {[%clk 0:02:12.4]} 12. Rb1 {[%clk 0:02:38.3]}
12... axb5 {[%clk 0:02:09.1]} 13. Nxb5 {[%clk 0:02:37.4]} 13... Nxb5 {[%clk
0:02:07.7]} 14. Rxb5 {[%clk 0:02:38.3]} 14... Bd7 {[%clk 0:02:07.3]} 15. Rb1
{[%clk 0:02:36.3]} 15... Bc6 {[%clk 0:02:07.3]} 16. Ne1 {[%clk 0:02:26.2]} 16...
Nd4 {[%clk 0:01:58]} 17. e3 {[%clk 0:02:21.8]} 17... Bxg2 {[%clk 0:01:55.5]} 18.
Kxg2 {[%clk 0:02:20.7]} 18... Nc6 {[%clk 0:01:54.2]} 19. f4 {[%clk 0:02:13.4]}
19... d5 {[%clk 0:01:47]} 20. cxd5 {[%clk 0:02:06.1]} 20... Qxd5+ {[%clk
0:01:47.9]} 21. Qf3 {[%clk 0:02:06.5]} 21... Qd7 {[%clk 0:01:39.2]} 22. Rf2
{[%clk 0:01:56.5]} 22... b5 {[%clk 0:01:37.7]} 23. Rc1 {[%clk 0:01:54.1]} 23...
Qd6 {[%clk 0:01:26.1]} 24. h4 {[%clk 0:01:45.8]} 24... Bb2 {[%clk 0:01:19.9]}
25. Rb1 {[%clk 0:01:40.5]} 25... Bxa3 {[%clk 0:01:19.9]} 26. h5 {[%clk
0:01:41.1]} 26... Bb4 {[%clk 0:01:18.5]} 27. hxg6 {[%clk 0:01:38.1]} 27... hxg6
{[%clk 0:01:12.9]} 28. Nc2 {[%clk 0:01:38]} 28... Qxd3 {[%clk 0:00:55.7]} 29.
Nxb4 {[%clk 0:01:34.9]} 29... Nxb4 {[%clk 0:00:51.4]} 30. Rh1 {[%clk 0:01:31.4]}
30... Qd5 {[%clk 0:00:38.2]} 31. e4 {[%clk 0:01:29.7]} 31... Qd3 {[%clk
0:00:38]} 32. Bxb4 {[%clk 0:01:16.6]} 32... Qxf3+ {[%clk 0:00:37.7]} 33. Kxf3
{[%clk 0:01:17.5]} 33... cxb4 {[%clk 0:00:38.5]} 34. Rb1 {[%clk 0:01:18.4]}
34... Rfc8 {[%clk 0:00:37.7]} 35. Rxb4 {[%clk 0:01:18.4]} 35... Rc3+ {[%clk
0:00:36.1]} 36. Kg4 {[%clk 0:01:18.2]} 36... Rc4 {[%clk 0:00:35.9]} 37. Rfb2
{[%clk 0:01:17.9]} 37... Rxb4 {[%clk 0:00:36.2]} 38. Rxb4 {[%clk 0:01:18.8]}
38... f6 {[%clk 0:00:36.2]} 39. Kf3 {[%clk 0:01:17.1]} 39... Kf7 {[%clk
0:00:36.5]} 40. Ke3 {[%clk 0:01:17.3]} 40... Ke6 {[%clk 0:00:35.8]} 41. Kd4
{[%clk 0:01:16]} 41... Kd6 {[%clk 0:00:35.8]} 42. Rb1 {[%clk 0:01:16]} 42... e5+
{[%clk 0:00:33.5]} 43. Ke3 {[%clk 0:01:15.6]} 43... b4 {[%clk 0:00:33]} 44. Kd3
{[%clk 0:01:10.2]} 44... b3 {[%clk 0:00:33.3]} 45. Rb2 {[%clk 0:01:07.4]} 45...
Kc5 {[%clk 0:00:32.7]} 46. Kc3 {[%clk 0:01:07.3]} 46... Rb4 {[%clk 0:00:31.3]}
47. f5 {[%clk 0:01:05.8]} 47... g5 {[%clk 0:00:30.4]} 48. Rd2 {[%clk 0:00:58]}
48... b2 {[%clk 0:00:26.9]} 49. Rd5+ {[%clk 0:00:55.8]} 49... Kc6 {[%clk
0:00:27]} 50. Kxb4 {[%clk 0:00:54.2]} 50... b1=Q+ {[%clk 0:00:27.3]} 51. Kc3
{[%clk 0:00:54.4]} 51... Qxe4 {[%clk 0:00:28.1]} 0-1

[Event "*** Titled Tuesday Blitz"]
[Site "Chess.com"]
[Date "2020.10.27"]
[Round "5"]
[White "albi1999"]
[Black "Zkid"]
[Result "0-1"]
[WhiteElo "2615"]
[BlackElo "2813"]
[TimeControl "180+1"]
[EndTime "10:55:34 PDT"]
[Termination "Zkid won by resignation"]

1. d4 {[%clk 0:03:00.9]} 1... d5 {[%clk 0:03:00]} 2. c4 {[%clk 0:02:59.3]} 2...
dxc4 {[%clk 0:03:00.9]} 3. Nf3 {[%clk 0:02:53.6]} 3... Nf6 {[%clk 0:02:59.2]} 4.
e3 {[%clk 0:02:53.3]} 4... e6 {[%clk 0:02:59.6]} 5. Bxc4 {[%clk 0:02:49.9]} 5...
c5 {[%clk 0:02:59.7]} 6. O-O {[%clk 0:02:49.8]} 6... a6 {[%clk 0:03:00.1]} 7.
Nc3 {[%clk 0:02:50.2]} 7... b5 {[%clk 0:02:59.6]} 8. Be2 {[%clk 0:02:49.8]} 8...
Bb7 {[%clk 0:02:53.5]} 9. dxc5 {[%clk 0:02:49.1]} 9... Qxd1 {[%clk 0:02:52.9]}
10. Rxd1 {[%clk 0:02:49.6]} 10... Bxc5 {[%clk 0:02:53.6]} 11. Nd2 {[%clk
0:02:50.1]} 11... Nc6 {[%clk 0:02:24.9]} 12. Nb3 {[%clk 0:02:47.5]} 12... Be7
{[%clk 0:02:23.6]} 13. Bf3 {[%clk 0:02:29.8]} 13... O-O {[%clk 0:02:21.7]} 14.
Bd2 {[%clk 0:02:25.4]} 14... Rab8 {[%clk 0:02:13.3]} 15. Rac1 {[%clk 0:02:23.6]}
15... Ne5 {[%clk 0:02:11.5]} 16. Bxb7 {[%clk 0:02:21.8]} 16... Rxb7 {[%clk
0:02:12.4]} 17. Na5 {[%clk 0:02:14.9]} 17... Rd7 {[%clk 0:02:10.7]} 18. Be1
{[%clk 0:02:12.3]} 18... Nd3 {[%clk 0:02:07.6]} 19. Rb1 {[%clk 0:02:00.2]} 19...
Rc8 {[%clk 0:02:01.6]} 20. Nb3 {[%clk 0:01:41]} 20... b4 {[%clk 0:01:44.2]} 21.
Ne2 {[%clk 0:01:35.8]} 21... e5 {[%clk 0:01:38]} 22. Kf1 {[%clk 0:01:19.1]}
22... e4 {[%clk 0:01:26.3]} 23. Ned4 {[%clk 0:01:17.3]} 23... Ng4 {[%clk
0:01:23.6]} 24. h3 {[%clk 0:01:15.7]} 24... Nge5 {[%clk 0:01:23.6]} 25. Ke2
{[%clk 0:01:15.3]} 25... Nc4 {[%clk 0:01:18.9]} 26. Nd2 {[%clk 0:01:06.8]} 26...
Ncxb2 {[%clk 0:01:15.6]} 27. Nxe4 {[%clk 0:01:00.8]} 27... Nxd1 {[%clk
0:01:10.4]} 28. Kxd3 {[%clk 0:00:57.2]} 28... Nc3 {[%clk 0:01:09.3]} 29. Nxc3
{[%clk 0:00:56.5]} 29... bxc3 {[%clk 0:01:10.2]} 30. Bxc3 {[%clk 0:00:57.1]}
30... Rdc7 {[%clk 0:01:05]} 31. Rb3 {[%clk 0:00:53.6]} 31... Bf6 {[%clk
0:01:01.9]} 32. a4 {[%clk 0:00:50.7]} 32... h5 {[%clk 0:00:52.7]} 33. g4 {[%clk
0:00:50.6]} 33... h4 {[%clk 0:00:48.6]} 34. f4 {[%clk 0:00:50.7]} 34... Rc4
{[%clk 0:00:46.8]} 35. a5 {[%clk 0:00:48.8]} 35... Ra4 {[%clk 0:00:46.8]} 36. g5
{[%clk 0:00:35.4]} 36... Bd8 {[%clk 0:00:43.9]} 37. Nf5 {[%clk 0:00:33.2]} 37...
g6 {[%clk 0:00:34.7]} 38. Nh6+ {[%clk 0:00:28.6]} 38... Kf8 {[%clk 0:00:34.4]}
39. Rb7 {[%clk 0:00:28.3]} 39... Ra3 {[%clk 0:00:31.4]} 40. Rxf7+ {[%clk
0:00:23.3]} 40... Ke8 {[%clk 0:00:31.7]} 0-1

[Event "*** Titled Tuesday Blitz"]
[Site "Chess.com"]
[Date "2020.10.27"]
[Round "5"]
[White "swimmerchess"]
[Black "blitzking1729"]
[Result "1-0"]
[WhiteElo "2804"]
[BlackElo "2563"]
[TimeControl "180+1"]
[EndTime "10:55:36 PDT"]
[Termination "swimmerchess won by resignation"]

1. e4 {[%clk 0:03:00.9]} 1... Nf6 {[%clk 0:02:59.8]} 2. e5 {[%clk 0:03:00.1]}
2... Nd5 {[%clk 0:02:59.6]} 3. d4 {[%clk 0:03:00.6]} 3... d6 {[%clk 0:02:59.2]}
4. c4 {[%clk 0:03:01.2]} 4... Nb6 {[%clk 0:02:58.8]} 5. f4 {[%clk 0:03:01.7]}
5... c5 {[%clk 0:02:57]} 6. d5 {[%clk 0:02:56.2]} 6... dxe5 {[%clk 0:02:54.9]}
7. fxe5 {[%clk 0:02:57.1]} 7... e6 {[%clk 0:02:46.6]} 8. Nc3 {[%clk 0:02:57.4]}
8... N8d7 {[%clk 0:02:31.1]} 9. Nf3 {[%clk 0:02:56.2]} 9... Be7 {[%clk
0:02:23.9]} 10. d6 {[%clk 0:02:47.2]} 10... Bf8 {[%clk 0:02:14.8]} 11. Nb5
{[%clk 0:02:46.2]} 11... f6 {[%clk 0:02:07.8]} 12. Nc7+ {[%clk 0:02:37.9]} 12...
Kf7 {[%clk 0:02:06.7]} 13. Nxa8 {[%clk 0:02:30.4]} 13... Nxa8 {[%clk 0:02:05.6]}
14. Bd3 {[%clk 0:02:30.2]} 14... h6 {[%clk 0:01:53.1]} 15. O-O {[%clk
0:02:26.5]} 15... f5 {[%clk 0:01:52.1]} 16. Bxf5 {[%clk 0:01:41.2]} 16... exf5
{[%clk 0:01:40]} 17. Qd5+ {[%clk 0:01:21.2]} 17... Kg6 {[%clk 0:01:39]} 18. e6
{[%clk 0:00:56.2]} 18... Nab6 {[%clk 0:01:14.2]} 19. Nh4+ {[%clk 0:00:55.5]}
19... Kh7 {[%clk 0:01:07.3]} 20. Qxf5+ {[%clk 0:00:55]} 20... Kg8 {[%clk
0:01:06.6]} 21. Qf7+ {[%clk 0:00:46.6]} 21... Kh7 {[%clk 0:01:05.8]} 22. Qg6+
{[%clk 0:00:42.6]} 22... Kg8 {[%clk 0:01:05.1]} 23. e7 {[%clk 0:00:34.5]} 23...
Bxe7 {[%clk 0:01:01.9]} 24. Qf7+ {[%clk 0:00:34.7]} 24... Kh7 {[%clk 0:01:01.9]}
25. dxe7 {[%clk 0:00:35.6]} 25... Qe8 {[%clk 0:01:01.7]} 26. Qf5+ {[%clk
0:00:34.6]} 26... Kg8 {[%clk 0:00:58.6]} 27. Ng6 {[%clk 0:00:28.2]} 27... Nf6
{[%clk 0:00:53]} 28. Qd3 {[%clk 0:00:27]} 28... Rh7 {[%clk 0:00:43.4]} 29. Be3
{[%clk 0:00:25.7]} 29... Be6 {[%clk 0:00:39.7]} 30. Bxc5 {[%clk 0:00:22.3]}
30... Bxc4 {[%clk 0:00:38.5]} 31. Qd8 {[%clk 0:00:20.5]} 31... Kf7 {[%clk
0:00:30.1]} 32. Ne5+ {[%clk 0:00:19.6]} 32... Ke6 {[%clk 0:00:28.4]} 33. Rxf6+
{[%clk 0:00:19.3]} 1-0

[Event "*** Titled Tuesday Blitz"]
[Site "Chess.com"]
[Date "2020.10.27"]
[Round "5"]
[White "Quattroporte300"]
[Black "WonderChampion"]
[Result "1-0"]
[WhiteElo "2243"]
[BlackElo "2027"]
[TimeControl "180+1"]
[EndTime "10:55:36 PDT"]
[Termination "Quattroporte300 won by resignation"]

1. d4 {[%clk 0:03:00.9]} 1... d5 {[%clk 0:02:21.2]} 2. c4 {[%clk 0:03:00.3]}
2... Nf6 {[%clk 0:02:22.1]} 3. cxd5 {[%clk 0:02:59.1]} 3... Nxd5 {[%clk
0:02:23]} 4. Nf3 {[%clk 0:02:55.4]} 4... g6 {[%clk 0:02:23]} 5. Nc3 {[%clk
0:02:55.6]} 5... Bg7 {[%clk 0:02:22.8]} 6. e4 {[%clk 0:02:54.7]} 6... Nxc3
{[%clk 0:02:22.4]} 7. bxc3 {[%clk 0:02:55]} 7... O-O {[%clk 0:02:23.2]} 8. Be3
{[%clk 0:02:50.1]} 8... b6 {[%clk 0:02:15.7]} 9. Bd3 {[%clk 0:02:43.7]} 9... Bb7
{[%clk 0:02:13.2]} 10. O-O {[%clk 0:02:43.8]} 10... Nd7 {[%clk 0:02:11.1]} 11.
Qe2 {[%clk 0:02:37.6]} 11... e5 {[%clk 0:02:10.8]} 12. d5 {[%clk 0:02:36.5]}
12... c6 {[%clk 0:02:09.1]} 13. c4 {[%clk 0:02:36.5]} 13... c5 {[%clk
0:02:08.4]} 14. g3 {[%clk 0:02:25.4]} 14... Rc8 {[%clk 0:02:03]} 15. Nd2 {[%clk
0:02:06.3]} 15... f5 {[%clk 0:01:54.3]} 16. f3 {[%clk 0:01:58.8]} 16... f4
{[%clk 0:01:42.9]} 17. Bf2 {[%clk 0:01:54.2]} 17... Qf6 {[%clk 0:01:40.6]} 18.
a4 {[%clk 0:01:51.7]} 18... a5 {[%clk 0:01:39]} 19. Rab1 {[%clk 0:01:49.5]}
19... Ba6 {[%clk 0:01:01.9]} 20. Rb3 {[%clk 0:01:34.9]} 20... Rb8 {[%clk
0:01:00.7]} 21. Be1 {[%clk 0:01:28.4]} 21... Qd6 {[%clk 0:01:00]} 22. Nb1 {[%clk
0:01:26.1]} 22... Nf6 {[%clk 0:00:58.8]} 23. Nc3 {[%clk 0:01:25.6]} 23... Nh5
{[%clk 0:00:55.2]} 24. Nb5 {[%clk 0:01:25.5]} 24... Bxb5 {[%clk 0:00:50.1]} 25.
Rxb5 {[%clk 0:01:25.1]} 25... fxg3 {[%clk 0:00:51]} 26. hxg3 {[%clk 0:01:23.4]}
26... Bf6 {[%clk 0:00:40.7]} 27. Kg2 {[%clk 0:01:22.9]} 27... Bd8 {[%clk
0:00:40.6]} 28. Bc3 {[%clk 0:01:19.4]} 28... Bh4 {[%clk 0:00:38]} 29. Be1 {[%clk
0:01:15.6]} 29... Qf6 {[%clk 0:00:29.7]} 30. f4 {[%clk 0:01:12.9]} 30... exf4
{[%clk 0:00:19.2]} 31. gxh4 {[%clk 0:01:10.4]} 31... Qd4 {[%clk 0:00:17.8]} 32.
Rf3 {[%clk 0:01:06.3]} 32... Rbe8 {[%clk 0:00:15.6]} 33. Qb2 {[%clk 0:01:00.8]}
33... Qxb2+ {[%clk 0:00:10.3]} 34. Rxb2 {[%clk 0:01:00]} 34... Nf6 {[%clk
0:00:11.2]} 35. Rxf4 {[%clk 0:00:57.9]} 35... Nd7 {[%clk 0:00:11.7]} 36. Rxf8+
{[%clk 0:00:52.1]} 36... Rxf8 {[%clk 0:00:12.6]} 37. Bg3 {[%clk 0:00:50.9]}
37... Ne5 {[%clk 0:00:13.5]} 38. Bxe5 {[%clk 0:00:50.7]} 1-0

[Event "*** Titled Tuesday Blitz"]
[Site "Chess.com"]
[Date "2020.10.27"]
[Round "5"]
[White "WiktoriaPOL"]
[Black "TudorAnton"]
[Result "0-1"]
[WhiteElo "2078"]
[BlackElo "2493"]
[TimeControl "180+1"]
[EndTime "10:55:38 PDT"]
[Termination "TudorAnton won on time"]

1. c4 {[%clk 0:03:00.9]} 1... e5 {[%clk 0:02:58.1]} 2. Nc3 {[%clk 0:03:00.6]}
2... Nc6 {[%clk 0:02:53.7]} 3. Nf3 {[%clk 0:02:59.9]} 3... Nf6 {[%clk
0:02:51.2]} 4. e4 {[%clk 0:02:59.1]} 4... Bc5 {[%clk 0:02:50.4]} 5. Nxe5 {[%clk
0:02:57.9]} 5... Nxe5 {[%clk 0:02:39]} 6. d4 {[%clk 0:02:57.2]} 6... Bd6 {[%clk
0:02:39.3]} 7. c5 {[%clk 0:02:56.9]} 7... Bxc5 {[%clk 0:02:35.4]} 8. dxe5 {[%clk
0:02:56.7]} 8... Ng8 {[%clk 0:02:32.9]} 9. Qg4 {[%clk 0:02:57.3]} 9... Bf8
{[%clk 0:02:30.9]} 10. Bc4 {[%clk 0:02:42.6]} 10... d6 {[%clk 0:02:30]} 11. Qf3
{[%clk 0:02:40.2]} 11... Qd7 {[%clk 0:02:22.6]} 12. exd6 {[%clk 0:01:47.4]}
12... Bxd6 {[%clk 0:02:23.5]} 13. O-O {[%clk 0:01:44.1]} 13... Nf6 {[%clk
0:02:22]} 14. Re1 {[%clk 0:01:41.3]} 14... Be5 {[%clk 0:02:20.4]} 15. Bg5 {[%clk
0:01:35.9]} 15... h6 {[%clk 0:02:19]} 16. Rad1 {[%clk 0:01:30]} 16... hxg5
{[%clk 0:02:17]} 17. Rxd7 {[%clk 0:01:29.1]} 17... Bxd7 {[%clk 0:02:17.9]} 18.
g3 {[%clk 0:01:19.8]} 18... g4 {[%clk 0:02:13.9]} 19. Qe2 {[%clk 0:01:13.7]}
19... O-O-O {[%clk 0:02:13.3]} 20. Bxf7 {[%clk 0:01:06.3]} 20... Rdf8 {[%clk
0:02:04.5]} 21. Bd5 {[%clk 0:00:48.4]} 21... c6 {[%clk 0:02:03.6]} 22. Bc4
{[%clk 0:00:46.9]} 22... Rh5 {[%clk 0:02:02.8]} 23. h4 {[%clk 0:00:23.8]} 23...
gxh3 {[%clk 0:02:01.4]} 24. f4 {[%clk 0:00:20.6]} 24... h2+ {[%clk 0:01:59.8]}
25. Kh1 {[%clk 0:00:19.8]} 25... Bg4 {[%clk 0:01:59.8]} 26. Qf2 {[%clk
0:00:16.7]} 26... Bxc3 {[%clk 0:01:56]} 27. bxc3 {[%clk 0:00:15.2]} 27... Ra5
{[%clk 0:01:53.3]} 28. Kxh2 {[%clk 0:00:09.9]} 28... Rh8+ {[%clk 0:01:50.9]} 29.
Kg1 {[%clk 0:00:09.1]} 29... Rah5 {[%clk 0:01:50]} 30. Qg2 {[%clk 0:00:05.4]}
30... Nd7 {[%clk 0:01:48.9]} 31. Be2 {[%clk 0:00:03.6]} 31... Nf6 {[%clk
0:01:44.8]} 32. Bxg4+ {[%clk 0:00:03.6]} 32... Nxg4 {[%clk 0:01:45.7]} 33. Qf3
{[%clk 0:00:03.7]} 33... Nf6 {[%clk 0:01:39.8]} 34. Kf2 {[%clk 0:00:04]} 34...
Rh2+ {[%clk 0:01:39.3]} 35. Ke3 {[%clk 0:00:04.4]} 35... Re8 {[%clk 0:01:37.4]}
36. e5 {[%clk 0:00:03.8]} 36... Nd5+ {[%clk 0:01:37.1]} 37. Kd4 {[%clk
0:00:04.1]} 37... Rd2+ {[%clk 0:01:35.8]} 38. Kc4 {[%clk 0:00:04]} 38... b5+
{[%clk 0:01:35.5]} 39. Kb3 {[%clk 0:00:03.1]} 39... a5 {[%clk 0:01:32.1]} 40.
Qg4+ {[%clk 0:00:03]} 40... Kc7 {[%clk 0:01:31.3]} 41. a4 {[%clk 0:00:03.3]}
41... bxa4+ {[%clk 0:01:26.6]} 42. Kxa4 {[%clk 0:00:03.8]} 42... Nb6+ {[%clk
0:01:25.8]} 43. Ka3 {[%clk 0:00:04]} 43... Nc4+ {[%clk 0:01:24.5]} 44. Ka4
{[%clk 0:00:04.4]} 44... Rb8 {[%clk 0:01:21]} 45. Qxg7+ {[%clk 0:00:03.5]} 45...
Rd7 {[%clk 0:01:20.9]} 46. Qf6 {[%clk 0:00:02.9]} 46... Nb6+ {[%clk 0:01:19]}
47. Kxa5 {[%clk 0:00:02.7]} 47... Nd5 {[%clk 0:01:19.9]} 48. Ka4 {[%clk
0:00:02.9]} 48... Nxf6 {[%clk 0:01:15.8]} 49. exf6 {[%clk 0:00:03.8]} 49... Rd2
{[%clk 0:01:15.1]} 50. Ka3 {[%clk 0:00:03.8]} 50... Rd5 {[%clk 0:01:14.3]} 0-1

[Event "*** Titled Tuesday Blitz"]
[Site "Chess.com"]
[Date "2020.10.27"]
[Round "5"]
[White "wonderfultime"]
[Black "chessasuke"]
[Result "0-1"]
[WhiteElo "2919"]
[BlackElo "2609"]
[TimeControl "180+1"]
[EndTime "10:55:41 PDT"]
[Termination "chessasuke won by resignation"]

1. d4 {[%clk 0:03:00.9]} 1... Nf6 {[%clk 0:02:57.6]} 2. Nf3 {[%clk 0:02:59.2]}
2... b6 {[%clk 0:02:55.9]} 3. Bf4 {[%clk 0:02:59.3]} 3... Bb7 {[%clk 0:02:56]}
4. e3 {[%clk 0:02:59.9]} 4... e6 {[%clk 0:02:56.4]} 5. Bd3 {[%clk 0:03:00.3]}
5... c5 {[%clk 0:02:54.4]} 6. c3 {[%clk 0:02:59.3]} 6... Be7 {[%clk 0:02:54]} 7.
O-O {[%clk 0:02:59.7]} 7... Nh5 {[%clk 0:02:50.6]} 8. Bg3 {[%clk 0:02:41]} 8...
O-O {[%clk 0:02:41.7]} 9. Qe2 {[%clk 0:02:34]} 9... d6 {[%clk 0:02:35.9]} 10. a4
{[%clk 0:02:28.1]} 10... a6 {[%clk 0:02:34.9]} 11. Nbd2 {[%clk 0:02:28.3]} 11...
Nd7 {[%clk 0:02:34.2]} 12. e4 {[%clk 0:02:22.9]} 12... Nxg3 {[%clk 0:02:29.4]}
13. hxg3 {[%clk 0:02:23.8]} 13... Re8 {[%clk 0:02:29.2]} 14. Rfd1 {[%clk
0:02:21.6]} 14... Qc7 {[%clk 0:02:28.8]} 15. Rac1 {[%clk 0:02:17.1]} 15... Bf6
{[%clk 0:02:19.7]} 16. Nf1 {[%clk 0:02:15.1]} 16... g6 {[%clk 0:02:06.7]} 17.
Ne3 {[%clk 0:02:13.9]} 17... Bg7 {[%clk 0:02:05.2]} 18. g4 {[%clk 0:02:14]}
18... h6 {[%clk 0:02:04.1]} 19. g5 {[%clk 0:01:48.4]} 19... hxg5 {[%clk
0:02:01.3]} 20. Nxg5 {[%clk 0:01:49.3]} 20... Bc6 {[%clk 0:01:57]} 21. Qf3
{[%clk 0:01:41]} 21... Nf8 {[%clk 0:01:54.9]} 22. Ng4 {[%clk 0:01:37.4]} 22...
Qe7 {[%clk 0:01:50.5]} 23. Qe3 {[%clk 0:01:32.1]} 23... Bxa4 {[%clk 0:01:48.1]}
24. Re1 {[%clk 0:01:30.8]} 24... e5 {[%clk 0:01:31]} 25. dxe5 {[%clk 0:01:27.9]}
25... dxe5 {[%clk 0:01:31.9]} 26. Bc4 {[%clk 0:01:27.6]} 26... Ne6 {[%clk
0:01:19.6]} 27. Bxe6 {[%clk 0:00:43.6]} 27... fxe6 {[%clk 0:01:20.5]} 28. g3
{[%clk 0:00:43.7]} 28... Bf6 {[%clk 0:01:10.9]} 29. Nxf6+ {[%clk 0:00:41.7]}
29... Qxf6 {[%clk 0:01:11.8]} 30. Kg2 {[%clk 0:00:41.7]} 30... Ra7 {[%clk
0:01:07.3]} 31. Rh1 {[%clk 0:00:41.2]} 31... Rd7 {[%clk 0:00:57.5]} 32. Ra1
{[%clk 0:00:34.8]} 32... Bb5 {[%clk 0:00:56]} 33. Rad1 {[%clk 0:00:28.6]} 33...
Red8 {[%clk 0:00:53.5]} 34. Rxd7 {[%clk 0:00:19.6]} 34... Rxd7 {[%clk
0:00:54.4]} 35. Rh6 {[%clk 0:00:20.2]} 35... Rd3 {[%clk 0:00:51.6]} 36. Qc1
{[%clk 0:00:20.6]} 36... Bc6 {[%clk 0:00:45.4]} 37. Qh1 {[%clk 0:00:18.3]} 37...
Rd2 {[%clk 0:00:36.3]} 38. Nh3 {[%clk 0:00:01.4]} 0-1

[Event "*** Titled Tuesday Blitz"]
[Site "Chess.com"]
[Date "2020.10.27"]
[Round "5"]
[White "TheSodabread"]
[Black "alexwinter25"]
[Result "0-1"]
[WhiteElo "1924"]
[BlackElo "2340"]
[TimeControl "180+1"]
[EndTime "10:55:48 PDT"]
[Termination "alexwinter25 won by resignation"]

1. d4 {[%clk 0:03:00.9]} 1... d5 {[%clk 0:02:57.1]} 2. Nc3 {[%clk 0:03:01.1]}
2... Nf6 {[%clk 0:02:54]} 3. Bf4 {[%clk 0:03:01.2]} 3... e6 {[%clk 0:02:52.8]}
4. Nb5 {[%clk 0:02:59.1]} 4... Na6 {[%clk 0:02:49.1]} 5. e3 {[%clk 0:02:58.4]}
5... c6 {[%clk 0:02:49.6]} 6. Nc3 {[%clk 0:02:59]} 6... Bd6 {[%clk 0:02:48.3]}
7. Nf3 {[%clk 0:02:57.6]} 7... Bxf4 {[%clk 0:02:47.1]} 8. exf4 {[%clk
0:02:58.5]} 8... O-O {[%clk 0:02:46.2]} 9. Bd3 {[%clk 0:02:58.6]} 9... Nc7
{[%clk 0:02:44.5]} 10. Qe2 {[%clk 0:02:55.7]} 10... b5 {[%clk 0:02:43.9]} 11.
O-O-O {[%clk 0:02:54.8]} 11... a5 {[%clk 0:02:43.9]} 12. Ne5 {[%clk 0:02:54.9]}
12... Bb7 {[%clk 0:02:38.1]} 13. g4 {[%clk 0:02:54.8]} 13... b4 {[%clk
0:02:34.9]} 14. Nb1 {[%clk 0:02:48.2]} 14... Ba6 {[%clk 0:02:31.1]} 15. g5
{[%clk 0:02:35.9]} 15... Ne4 {[%clk 0:02:30]} 16. Bxa6 {[%clk 0:02:31.4]} 16...
Nxa6 {[%clk 0:02:27.2]} 17. f3 {[%clk 0:02:29.8]} 17... Nd6 {[%clk 0:02:23.1]}
18. h4 {[%clk 0:02:26.5]} 18... c5 {[%clk 0:02:23.2]} 19. h5 {[%clk 0:02:26.4]}
19... cxd4 {[%clk 0:02:23.3]} 20. h6 {[%clk 0:02:26.1]} 20... g6 {[%clk
0:02:19.9]} 21. Ng4 {[%clk 0:02:26.3]} 21... Qc7 {[%clk 0:01:44.4]} 22. Nf6+
{[%clk 0:01:47.2]} 22... Kh8 {[%clk 0:01:42.5]} 23. Qe5 {[%clk 0:01:13.1]} 23...
Nf5 {[%clk 0:01:33.6]} 24. Qxc7 {[%clk 0:00:47.1]} 24... Nxc7 {[%clk 0:01:34.5]}
25. Nd2 {[%clk 0:00:48]} 25... Rfc8 {[%clk 0:01:23.5]} 26. Nb3 {[%clk
0:00:46.4]} 26... Nb5 {[%clk 0:01:21.5]} 27. Rd2 {[%clk 0:00:39]} 27... a4
{[%clk 0:01:20.3]} 28. Na1 {[%clk 0:00:36.7]} 28... b3 {[%clk 0:01:19]} 29. axb3
{[%clk 0:00:37.6]} 29... axb3 {[%clk 0:01:15.3]} 30. Nxb3 {[%clk 0:00:38.5]}
30... Rc4 {[%clk 0:00:47.5]} 31. Kb1 {[%clk 0:00:36.6]} 31... Rca4 {[%clk
0:00:43.9]} 32. Nd7 {[%clk 0:00:22]} 32... R8a5 {[%clk 0:00:38]} 33. Ndc5 {[%clk
0:00:15.5]} 33... Ra8 {[%clk 0:00:33.4]} 34. Nd7 {[%clk 0:00:15.1]} 34... R4a7
{[%clk 0:00:32.5]} 35. Nb6 {[%clk 0:00:15]} 35... Rb8 {[%clk 0:00:31.9]} 36.
Nxd4 {[%clk 0:00:05]} 36... Nbxd4 {[%clk 0:00:30]} 37. c3 {[%clk 0:00:05.3]}
37... Nb3 {[%clk 0:00:28.2]} 0-1